Workbook

Sheet Burden Hours Collection
A1: RURAL UTILITIES SERVICE
A2: 7 CFR 1775 Technical Assistance Programs
A3: INFORMATION COLLECTION BURDEN HOURS
A4: OMB # 0572 - 0112
A7: Estimated No. of Total Respondents (Applicants) | C7: 66 | J7: Estimated No. of Total Awards (Awardees) | K7: 52
A8: Average hours per response | C8: =I9/G9 -> 5.0526 | J8: Number of responses per respondent | K8: =G9/C7 -> 16.67
A9: Gray Columns have automatic formulas. DO NOT input numbers in these columns. | F9: TOTAL | G9: =SUM(G13:G33) -> 1,100 | I9: =SUM(I13:I33) -> 5,557.9000 | K9: =SUM(K13:K33) -> $293,483
A10: (A) | B10: (B) | C10: (C) | D10: (D) | E10: (E) | F10: (F) | G10: (G) | H10: (H) | I10: (I) | J10: (J) | K10: (K)
A11: Regulation Reference | B11: Title | C11: Form No. (If Any) | D11: % of Respondents Line Item is Applicable To | E11: Estimated # of Respondents | F11: Reports Filed Annually | G11: Total Responses (E) x (F) | H11: Estimated # of Hours Per Response | I11: Estimated Total Hours (G) x (H) | J11: Prof. Wage Rate | K11: Total Cost (I) x (J)
A12: APPLICATION
A13: 1775.10(c)(6) | B13: Documentation of assistance provided to Rural Development employees | D13: 100% | E13: =D13*$C$7 -> 66 | F13: 1 | G13: =E13*F13 -> 66 | H13: 0.25 | I13: =IF((H13*G13)="","",(H13*G13)) -> 16.50 | J13: $52.68 | K13: =IF((J13*I13)="","",(J13*I13)) -> $869
A14: 1775.10(c)(9) | B14: Indirect Cost Agreement | D14: 100% | E14: =D14*$K$7 -> 52 | F14: 1 | G14: 52 | H14: 1.00 | I14: 52.00 | J14: $66.00 | K14: $3,432
A15: 1775.10(c)(10) | B15: Statement of Compliance, Title VI of Civil Rights Act of 1964 | D15: 100% | E15: 52 | F15: 1 | G15: 52 | H15: 0.50 | I15: 26.00 | J15: =$J$13 -> $52.68 | K15: $1,370
A16: 1775.10 | B16: Statement concerning assistance under the National Forest Service-Dependent Rural Communities Economic Diversification Act | D16: 100% | E16: 52 | F16: 1 | G16: 52 | H16: 1.00 | I16: 52.00 | J16: $52.68 | K16: $2,739
A17: 1775.10(d)(1) | B17: Legal Authority and Responsibility | D17: 100% | E17: 52 | F17: 1 | G17: 52 | H17: 0.25 | I17: 13.00 | J17: $52.68 | K17: $685
A18: 1775.10(d)(2) | B18: Evidence of Tax Exempt Status | D18: 100% | E18: 52 | F18: 1 | G18: 52 | H18: 0.25 | I18: 13.00 | J18: $52.68 | K18: $685
A19: 1775.10(d)(3) | B19: Narrative- Initial Submission | D19: 100% | E19: 52 | F19: 1 | G19: 52 | H19: 2.00 | I19: 104.00 | J19: $52.68 | K19: $5,479
B20: Narrative- Revised Submission | D20: 80% | E20: 42 | F20: 1 | G20: 42 | H20: 2.00 | I20: 83.20 | J20: $52.68 | K20: $4,383
A21: 1775.10(d)(8) | B21: Scope of Work- Initial Submission | D21: 100% | E21: 66 | F21: 1 | G21: 66 | H21: 12.00 | I21: 792.00 | J21: $52.68 | K21: $41,723
B22: Scope of Work- Final Submission | D22: 80% | E22: 53 | F22: 1 | G22: 53 | H22: 12.00 | I22: 633.60 | J22: $52.68 | K22: $33,378
A23: 1775.10(d)(6) | B23: Budget justification- Initial Submission | D23: 100% | E23: =D23*$K$7 -> 52 | F23: 1 | G23: 52 | H23: 10.00 | I23: 520.00 | J23: $52.68 | K23: $27,394
B24: Budget justification- Revised Submission | D24: 80% | E24: 42 | F24: 1 | G24: 42 | H24: 10.00 | I24: 416.00 | J24: $52.68 | K24: $21,915
A25: 1775.10(d)(4) | B25: Latest Financial Information | D25: 100% | E25: 52 | F25: 1 | G25: 52 | H25: 1.00 | I25: 52.00 | J25: $52.68 | K25: $2,739
A26: 1775.10(d)(7) | B26: Evidence of Financial Management System | D26: 100% | E26: 52 | F26: 1 | G26: 52 | H26: 0.25 | I26: 13.00 | J26: $52.68 | K26: $685
A28: AWARD CLOSING, SERVICING, AND REPORTING
A29: 1775.13 | B29: Grant Agreement | C29: RUS Guide 1775-1 | D29: 100% | E29: =D29*$K$7 -> 52 | F29: 1 | G29: 52 | H29: 2.00 | I29: =IF((H29*G29)="","",(H29*G29)) -> 104.00 | J29: =$J$13 -> $52.68 | K29: =IF((J29*I29)="","",(J29*I29)) -> $5,479
A30: 1775.2 | B30: Project Performance Report | D30: 100% | E30: =D30*$K$7 -> 52 | F30: 4 | G30: 208 | H30: 12.00 | I30: 2,496.00 | J30: $52.68 | K30: $131,489
A31: 1775.21 | B31: Audit | D31: 15% | E31: 8 | F31: 1 | G31: 8 | H31: 3.00 | I31: 23.40 | J31: $52.68 | K31: $1,233
A32: 1775.21 | B32: Financial Statements | D32: 85% | E32: 44 | F32: 1 | G32: 44 | H32: 1.00 | I32: 44.20 | J32: $52.68 | K32: $2,328
B33: SAM Registration | C33: Written | D33: 100% | E33: =D33*$K$7 -> 52 | F33: 1 | G33: =E33*F33 -> 52 | H33: 2.00 | I33: =IF((H33*G33)="","",(H33*G33)) -> 104.00 | J33: =$J$13 -> $52.68 | K33: =IF((J33*I33)="","",(J33*I33)) -> $5,479
M46: $55.35

Sheet Not Included in Burden Hours
A7: Estimated No. of Total Respondents (Applicants) | C7: 66 | J7: Estimated No. of Total Awards (Awardees) | K7: 52
A8: Average hours per response | C8: =I9/G9 -> 1.129 | J8: Number of responses per respondent | K8: =G9/C7 -> 21.01
A9: Gray Columns have automatic formulas. DO NOT input numbers in these columns. | F9: TOTAL | G9: =SUM(G13:G22) -> 1,387 | I9: =SUM(I13:I22) -> 1,566 | K9: =SUM(K13:K22) -> $82,502
A10: (A) | B10: (B) | C10: (C) | D10: (D) | E10: (E) | F10: (F) | G10: (G) | H10: (H) | I10: (I) | J10: (J) | K10: (K)
A11: Regulation Reference | B11: Title | C11: Form No. (If Any) | D11: % of Respondents Line Item is Applicable To | E11: Estimated # of Respondents | F11: Reports Filed Annually | G11: Total Responses (E) x (F) | H11: Estimated # of Hours Per Response | I11: Estimated Total Hours (G) x (H) | J11: Prof. Wage Rate | K11: Total Cost (I) x (J)
A12: APPLICATION
A13: 1775.10(c)(1) | B13: Application for Federal Assistance (Non-construction Programs)- Initial Submission | C13: SF-424 (4040-0004) | D13: 100% | E13: =D13*$K$7 -> 52 | F13: 1 | G13: =E13*F13 -> 52 | H13: 0.75 | I13: =IF((H13*G13)="","",(H13*G13)) -> 39 | J13: ='Burden Hours Collection'!$J$13 -> $52.68 | K13: =IF((J13*I13)="","",(J13*I13)) -> $2,055
A14: 1775.10(c)(1) | B14: Application for Federal Assistance (Non-construction Programs)- Revised Submission | C14: SF-424 (4040-0004) | D14: 80% | E14: =D14*$K$7 -> 41.6 | F14: 1 | G14: 42 | H14: 0.75 | I14: 31 | J14: ='Burden Hours Collection'!$J$13 -> $52.68 | K14: $1,644
A15: 1775.10(c)(2) | B15: Budget Information--Non-Construction Programs- Initial Submission | C15: SF-424A (4040-0006) | D15: 100% | E15: =D15*$K$7 -> 52 | F15: 1 | G15: 52 | H15: 3 | I15: 156 | J15: ='Burden Hours Collection'!$J$13 -> $52.68 | K15: $8,218
A16: 1775.10(c)(2) | B16: Budget Information--Non-Construction Programs- Revised Submission | C16: SF-424A (4040-0006) | D16: 80% | E16: =D16*$K$7 -> 41.6 | F16: 1 | G16: 42 | H16: 3 | I16: 125 | J16: ='Burden Hours Collection'!$J$13 -> $52.68 | K16: $6,574
A17: 1775.10(c)(8) | B17: Equal Opportunity Agreement | C17: RD 400-1 | D17: 100% | E17: =D17*$K$7 -> 52 | F17: 1 | G17: 52 | H17: 0.25 | I17: 13 | J17: ='Burden Hours Collection'!$J$13 -> $52.68 | K17: $685
A18: 1775.10(c)(11) | B18: Disclosure of Lobbying Activities | C18: SF LLL | D18: 100% | E18: =D18*$C$7 -> 66 | F18: 1 | G18: 66 | H18: 0.25 | I18: 17 | J18: ='Burden Hours Collection'!$J$13 -> $52.68 | K18: $869
A19: AWARD CLOSING, SERVICING, AND REPORTING
A20: 1775.18(a) | B20: Request for Advance or Reimbursement (Corporation) | C20: SF-270 (0348-0004) | D20: 100% | E20: =D20*$K$7 -> 52 | F20: 12 | G20: =E20*F20 -> 624 | H20: 1 | I20: =IF((H20*G20)="","",(H20*G20)) -> 624 | J20: ='Burden Hours Collection'!$J$13 -> $52.68 | K20: =IF((J20*I20)="","",(J20*I20)) -> $32,872
A21: 1775.18(a) | B21: Request for Advance or Reimbursement (Corporation) - Extension | C21: SF-270 | D21: 40% | E21: =D21*$K$7 -> 20.8 | F21: 12 | G21: =E21*F21 -> 250 | H21: 1 | I21: =IF((H21*G21)="","",(H21*G21)) -> 250 | J21: ='Burden Hours Collection'!$J$13 -> $52.68 | K21: =IF((J21*I21)="","",(J21*I21)) -> $13,149
B22: Federal Financial Report | C22: SF-425 (4040-0014) | D22: 100% | E22: =D22*$K$7 -> 52 | F22: 4 | G22: =E22*F22 -> 208 | H22: 1.5 | I22: =IF((H22*G22)="","",(H22*G22)) -> 312 | J22: ='Burden Hours Collection'!$J$13 -> $52.68 | K22: =IF((J22*I22)="","",(J22*I22)) -> $16,436
B23: Federal Financial Report - Extension | C23: SF-425 (4040-0014) | D23: 40% | E23: =D23*$K$7 -> 20.8 | F23: 4 | G23: =E23*F23 -> 83 | H23: 1.5 | I23: =IF((H23*G23)="","",(H23*G23)) -> 125 | J23: ='Burden Hours Collection'!$J$13 -> $52.68 | K23: =IF((J23*I23)="","",(J23*I23)) -> $6,574

Sheet Ann Cost to Fed Gov Est
A1: ='[1]12 BH Collection'!A1 -> RURAL UTILITIES SERVICE
A2: Technical Assistance Programs
A3: ='[1]12 BH Collection'!A3 -> INFORMATION COLLECTION BURDEN HOURS
A4: OMB # 0572 - 0012
A7: 1. OPM GS & SES Pay Tables:
A8: Click Link | B8: Pay & Leave (opm.gov)
A9: Click "pay tables" from first paragraph
A10: Click current Year at top under Salaries & Wages
A12: a. OPM GS Pay Tables: Under "General Schedule (GS) & Locality Pay Tables" click 20## GS Pay Tables (ex. 2024 GS Pay Tables)
A13: Then choose B (for base) Hourly Rate from table for St. Louis-St. Charles-Farmington, MO-IL.
A16: 2. Benefit % (OMB Memo M-08 13) | B16: https://www.whitehouse.gov/wp-content/uploads/legacy_drupal_files/omb/memoranda/2008/m08-13.pdf | J16: 36.25%
A18: Gray & Blue Columns have automatic formulas. DO NOT input numbers in these columns. | F18: Total | G18: =SUM(G20:G23) -> 285.00 | H18: =SUM(H20:H22) -> $21,334.50
A19: Staff Position | B19: GS Grade | C19: GS Step | D19: Hourly Rate Calc | E19: Benefits Calc | F19: Total Salary Rate Calc | G19: Hours Required | H19: Cost Subtotals
A20: Loan Specialist - State Office | B20: 12 | C20: 5 | D20: $48.36 | E20: =D20*$J$16 -> $17.53 | F20: =D20+E20 -> $65.89 | G20: 80.00 | H20: =G20*F20 -> $5,271.24
A21: Program Director - State Office | B21: 13 | C21: 5 | D21: $57.51 | E21: =D21*$J$16 -> $20.85 | F21: =D21+E21 -> $78.36 | G21: 5.00 | H21: =G21*F21 -> $391.79
A22: Loan Specialist - National Office | B22: 13 | C22: 5 | D22: $57.51 | E22: =D22*$J$16 -> $20.85 | F22: =D22+E22 -> $78.36 | G22: 200.00 | H22: =G22*F22 -> $15,671.48
E23: =D23*$J$16 -> $0.00 | F23: =D23+E23 -> $0.00 | H23: =G23*F23 -> $0.00
